[Event "*** Titled Tuesday Blitz"]
[Site "Chess.com"]
[Date "2021.03.09"]
[Round "6"]
[White "Niktlt"]
[Black "PopMilan95"]
[Result "1/2-1/2"]
[WhiteElo "2445"]
[BlackElo "2601"]
[TimeControl "180+1"]
[EndTime "11:12:23 PST"]
[Termination "Game drawn - insufficient material"]

1. c4 {[%clk 0:03:00.9]} 1... Nf6 {[%clk 0:02:58.3]} 2. Nc3 {[%clk 0:03:00.5]}
2... g6 {[%clk 0:02:58.5]} 3. g3 {[%clk 0:02:58.8]} 3... Bg7 {[%clk 0:02:56.4]}
4. Bg2 {[%clk 0:02:59.1]} 4... O-O {[%clk 0:02:56.6]} 5. Nf3 {[%clk 0:02:58.2]}
5... d6 {[%clk 0:02:55.9]} 6. O-O {[%clk 0:02:58.4]} 6... Nc6 {[%clk 0:02:46.5]}
7. d4 {[%clk 0:02:57.5]} 7... Bg4 {[%clk 0:02:46.1]} 8. b3 {[%clk 0:02:50.3]}
8... e5 {[%clk 0:02:44.2]} 9. d5 {[%clk 0:02:47.1]} 9... Nb8 {[%clk 0:02:25.1]}
10. Bb2 {[%clk 0:02:45.2]} 10... a5 {[%clk 0:02:24.3]} 11. a3 {[%clk 0:02:43.9]}
11... Na6 {[%clk 0:02:24.1]} 12. h3 {[%clk 0:02:42.2]} 12... Bd7 {[%clk
0:02:22.5]} 13. Qc2 {[%clk 0:02:36.6]} 13... Ne8 {[%clk 0:02:17]} 14. Ne1 {[%clk
0:02:19.3]} 14... f5 {[%clk 0:02:16.6]} 15. f4 {[%clk 0:02:18.5]} 15... exf4
{[%clk 0:02:08]} 16. gxf4 {[%clk 0:02:15.7]} 16... Nf6 {[%clk 0:02:04]} 17. Nf3
{[%clk 0:02:14.4]} 17... Nh5 {[%clk 0:02:01.8]} 18. e3 {[%clk 0:02:13.9]} 18...
Re8 {[%clk 0:01:46.5]} 19. Rfe1 {[%clk 0:02:12.7]} 19... Re7 {[%clk 0:01:16.3]}
20. Ng5 {[%clk 0:02:10.5]} 20... Qe8 {[%clk 0:01:02.5]} 21. Ne6 {[%clk
0:02:08.8]} 21... Bxe6 {[%clk 0:00:58.5]} 22. dxe6 {[%clk 0:02:09.7]} 22... c6
{[%clk 0:00:58.9]} 23. Bf3 {[%clk 0:01:27.1]} 23... Nf6 {[%clk 0:00:47.5]} 24.
Kf2 {[%clk 0:01:26.1]} 24... Rxe6 {[%clk 0:00:46.8]} 25. Re2 {[%clk 0:01:22.1]}
25... Qe7 {[%clk 0:00:43.7]} 26. b4 {[%clk 0:01:18.3]} 26... Ne4+ {[%clk
0:00:22.8]} 27. Nxe4 {[%clk 0:00:59.5]} 27... Bxb2 {[%clk 0:00:23.7]} 28. Qxb2
{[%clk 0:01:00.4]} 28... fxe4 {[%clk 0:00:24]} 29. Bg4 {[%clk 0:01:00.9]} 29...
Qh4+ {[%clk 0:00:23.2]} 30. Kg2 {[%clk 0:01:00.1]} 30... Re7 {[%clk 0:00:23.5]}
31. Rd2 {[%clk 0:00:51.3]} 31... h5 {[%clk 0:00:13.5]} 32. Be2 {[%clk
0:00:40.6]} 32... Rg7 {[%clk 0:00:09.1]} 33. Rxd6 {[%clk 0:00:10.4]} 33... g5
{[%clk 0:00:09.3]} 34. f5 {[%clk 0:00:10.9]} 34... g4 {[%clk 0:00:09.4]} 35. Rg6
{[%clk 0:00:10.1]} 35... Qxh3+ {[%clk 0:00:09]} 36. Kf2 {[%clk 0:00:10.1]} 36...
Rxg6 {[%clk 0:00:09]} 37. fxg6 {[%clk 0:00:11]} 37... Rf8+ {[%clk 0:00:09.3]}
38. Ke1 {[%clk 0:00:11.2]} 38... Qxe3 {[%clk 0:00:07.9]} 39. c5 {[%clk
0:00:06.1]} 39... Rd8 {[%clk 0:00:05.4]} 40. Qa2+ {[%clk 0:00:04.7]} 40... Kh8
{[%clk 0:00:04.7]} 41. Qb2+ {[%clk 0:00:04.9]} 41... Qd4 {[%clk 0:00:04.1]} 42.
Qxd4+ {[%clk 0:00:03.7]} 42... Rxd4 {[%clk 0:00:05]} 43. bxa5 {[%clk 0:00:03.7]}
43... Nxc5 {[%clk 0:00:04.8]} 44. Rb1 {[%clk 0:00:04.5]} 44... Rd5 {[%clk
0:00:03.6]} 45. Rb6 {[%clk 0:00:04]} 45... Kg7 {[%clk 0:00:03.3]} 46. a6 {[%clk
0:00:04.2]} 46... bxa6 {[%clk 0:00:04.2]} 47. Rxc6 {[%clk 0:00:04.6]} 47... Rg5
{[%clk 0:00:04.6]} 48. Kf2 {[%clk 0:00:04.7]} 48... h4 {[%clk 0:00:04.5]} 49.
Kg2 {[%clk 0:00:05.2]} 49... g3 {[%clk 0:00:04.4]} 50. Rc7+ {[%clk 0:00:04.6]}
50... Kxg6 {[%clk 0:00:04.4]} 51. Rc6+ {[%clk 0:00:05.2]} 51... Kg7 {[%clk
0:00:04.8]} 52. Rc7+ {[%clk 0:00:05.2]} 52... Kf6 {[%clk 0:00:05.3]} 53. Rc6+
{[%clk 0:00:05.5]} 53... Ne6 {[%clk 0:00:04.8]} 54. Bc4 {[%clk 0:00:05.1]} 54...
h3+ {[%clk 0:00:04.9]} 55. Kg1 {[%clk 0:00:03.9]} 55... g2 {[%clk 0:00:05.8]}
56. Rxe6+ {[%clk 0:00:03.5]} 56... Kf5 {[%clk 0:00:05.2]} 57. Rh6 {[%clk
0:00:04.1]} 57... Rg3 {[%clk 0:00:03.9]} 58. Be6+ {[%clk 0:00:03.7]} 58... Kf4
{[%clk 0:00:04.2]} 59. Bxh3 {[%clk 0:00:03.9]} 59... Rxa3 {[%clk 0:00:03.9]} 60.
Bxg2 {[%clk 0:00:04.5]} 60... e3 {[%clk 0:00:03.5]} 61. Rf6+ {[%clk 0:00:03.8]}
61... Ke5 {[%clk 0:00:03.5]} 62. Rf8 {[%clk 0:00:04.3]} 62... Ra1+ {[%clk
0:00:02.9]} 63. Kh2 {[%clk 0:00:04.7]} 63... Kd4 {[%clk 0:00:03.3]} 64. Re8
{[%clk 0:00:05.2]} 64... Kd3 {[%clk 0:00:02.9]} 65. Kg3 {[%clk 0:00:05.7]} 65...
e2 {[%clk 0:00:02.6]} 66. Kf2 {[%clk 0:00:05.3]} 66... Kd2 {[%clk 0:00:02.6]}
67. Rd8+ {[%clk 0:00:05.8]} 67... Kc3 {[%clk 0:00:02.8]} 68. Re8 {[%clk
0:00:06.7]} 68... e1=Q+ {[%clk 0:00:02.3]} 69. Rxe1 {[%clk 0:00:06.8]} 69...
Rxe1 {[%clk 0:00:03.2]} 70. Kxe1 {[%clk 0:00:07.7]} 70... a5 {[%clk 0:00:04.1]}
71. Kd1 {[%clk 0:00:08]} 71... a4 {[%clk 0:00:05]} 72. Kc1 {[%clk 0:00:08.5]}
72... a3 {[%clk 0:00:05.9]} 73. Kb1 {[%clk 0:00:09.4]} 73... a2+ {[%clk
0:00:06.8]} 74. Ka1 {[%clk 0:00:10.3]} 74... Kb4 {[%clk 0:00:06.6]} 75. Bd5
{[%clk 0:00:10.4]} 75... Ka3 {[%clk 0:00:06.8]} 76. Bxa2 {[%clk 0:00:11.3]}
1/2-1/2

[Event "*** Titled Tuesday Blitz"]
[Site "Chess.com"]
[Date "2021.03.09"]
[Round "6"]
[White "Leonid_Starozhilov"]
[Black "enriquetejedor"]
[Result "1-0"]
[WhiteElo "2697"]
[BlackElo "2544"]
[TimeControl "180+1"]
[EndTime "11:12:26 PST"]
[Termination "Leonid_Starozhilov won by resignation"]

1. e4 {[%clk 0:03:00.9]} 1... c6 {[%clk 0:02:59.8]} 2. d3 {[%clk 0:03:00.7]}
2... d5 {[%clk 0:02:53.9]} 3. Nd2 {[%clk 0:03:01.6]} 3... g6 {[%clk 0:02:46.9]}
4. h4 {[%clk 0:03:01.1]} 4... h5 {[%clk 0:02:23.6]} 5. Ngf3 {[%clk 0:02:55.5]}
5... Bg7 {[%clk 0:02:22.6]} 6. c3 {[%clk 0:02:51.8]} 6... e5 {[%clk 0:02:15.2]}
7. d4 {[%clk 0:02:27.9]} 7... exd4 {[%clk 0:02:09.8]} 8. cxd4 {[%clk 0:02:27.7]}
8... dxe4 {[%clk 0:02:09.3]} 9. Nxe4 {[%clk 0:02:28.6]} 9... Nf6 {[%clk
0:02:07.3]} 10. Nxf6+ {[%clk 0:02:16.8]} 10... Qxf6 {[%clk 0:01:58.4]} 11. Bg5
{[%clk 0:02:04.4]} 11... Qd6 {[%clk 0:01:57.4]} 12. Bc4 {[%clk 0:01:48.1]} 12...
Qb4+ {[%clk 0:01:51.8]} 13. Nd2 {[%clk 0:01:46.7]} 13... O-O {[%clk 0:01:47.9]}
14. O-O {[%clk 0:01:45.7]} 14... Qxb2 {[%clk 0:01:43.9]} 15. Nb3 {[%clk
0:01:29.8]} 15... Qa3 {[%clk 0:01:21.5]} 16. Re1 {[%clk 0:01:23.8]} 16... b5
{[%clk 0:00:38.6]} 17. Be7 {[%clk 0:01:18.1]} 17... Qa4 {[%clk 0:00:28]} 18.
Bxf8 {[%clk 0:01:15.9]} 18... Bxf8 {[%clk 0:00:24.4]} 19. Bd3 {[%clk 0:01:12.2]}
19... Bg4 {[%clk 0:00:20.7]} 20. Qc2 {[%clk 0:01:10]} 20... Kg7 {[%clk
0:00:15.8]} 21. Re8 {[%clk 0:00:59.6]} 21... Bd7 {[%clk 0:00:14.4]} 22. Re4
{[%clk 0:00:26]} 22... Na6 {[%clk 0:00:11.4]} 23. d5 {[%clk 0:00:25.2]} 23...
Nb4 {[%clk 0:00:10.9]} 24. Qc3+ {[%clk 0:00:24.6]} 24... Kg8 {[%clk 0:00:08]}
25. dxc6 {[%clk 0:00:18]} 25... Bxc6 {[%clk 0:00:06.8]} 26. Rxb4 {[%clk
0:00:17.2]} 26... Qxb4 {[%clk 0:00:02.6]} 27. Qxc6 {[%clk 0:00:17.8]} 27... Rd8
{[%clk 0:00:02.8]} 28. Qe4 {[%clk 0:00:17.9]} 28... Qxe4 {[%clk 0:00:01.5]} 29.
Bxe4 {[%clk 0:00:18.8]} 29... Rd7 {[%clk 0:00:01.1]} 30. Bf3 {[%clk 0:00:19.3]}
30... Rc7 {[%clk 0:00:01.4]} 31. Rd1 {[%clk 0:00:19.7]} 31... Bb4 {[%clk
0:00:01.7]} 32. Rd5 {[%clk 0:00:19]} 32... a6 {[%clk 0:00:01.7]} 33. Be4 {[%clk
0:00:14.6]} 33... Be7 {[%clk 0:00:02.2]} 34. g3 {[%clk 0:00:14.7]} 34... Kg7
{[%clk 0:00:02.6]} 35. Kg2 {[%clk 0:00:15.3]} 35... Bf6 {[%clk 0:00:03]} 36. Rc5
{[%clk 0:00:14.4]} 36... Re7 {[%clk 0:00:03.1]} 37. Bf3 {[%clk 0:00:14.1]} 37...
Bb2 {[%clk 0:00:02.9]} 38. Rc6 {[%clk 0:00:14.3]} 38... Ra7 {[%clk 0:00:02.1]}
39. Nc5 {[%clk 0:00:14.8]} 39... a5 {[%clk 0:00:01.8]} 40. Nd3 {[%clk
0:00:15.6]} 40... Bd4 {[%clk 0:00:01.5]} 41. Rd6 {[%clk 0:00:16]} 41... Bf6
{[%clk 0:00:01.6]} 42. Rd5 {[%clk 0:00:16.9]} 42... b4 {[%clk 0:00:01.9]} 43.
Nc5 {[%clk 0:00:17.3]} 43... Bc3 {[%clk 0:00:02.3]} 44. Na4 {[%clk 0:00:17.3]}
44... Ba1 {[%clk 0:00:01.9]} 45. Rb5 {[%clk 0:00:17.9]} 45... Bf6 {[%clk
0:00:01.9]} 46. Rb7 {[%clk 0:00:18.3]} 46... Ra6 {[%clk 0:00:01.6]} 47. Bd5
{[%clk 0:00:18.2]} 47... Rd6 {[%clk 0:00:01.7]} 48. Bxf7 {[%clk 0:00:16.9]}
48... Kh6 {[%clk 0:00:02.1]} 49. Bg8 {[%clk 0:00:16.5]} 49... Bg7 {[%clk
0:00:02.6]} 50. Nc5 {[%clk 0:00:16.6]} 50... Rd8 {[%clk 0:00:02.9]} 51. Bf7
{[%clk 0:00:15.1]} 51... Rd2 {[%clk 0:00:02.9]} 52. Ne4 {[%clk 0:00:13.5]} 52...
Re2 {[%clk 0:00:02.6]} 53. Ng5 {[%clk 0:00:12.4]} 53... Bd4 {[%clk 0:00:02]} 54.
Nh3 {[%clk 0:00:11.6]} 54... Kg7 {[%clk 0:00:01.6]} 55. Bc4+ {[%clk 0:00:10.8]}
55... Kf6 {[%clk 0:00:01.9]} 56. Bxe2 {[%clk 0:00:11]} 56... Ke5 {[%clk
0:00:02.1]} 57. Ng5 {[%clk 0:00:11.3]} 57... Bc3 {[%clk 0:00:01.7]} 58. Bc4
{[%clk 0:00:11.4]} 58... Kd4 {[%clk 0:00:01.9]} 59. Bb3 {[%clk 0:00:11.6]} 59...
Ba1 {[%clk 0:00:01.2]} 60. Ra7 {[%clk 0:00:11.7]} 60... Kc3 {[%clk 0:00:01.2]}
61. Rxa5 {[%clk 0:00:12.2]} 61... Kb2 {[%clk 0:00:01.7]} 62. Ra6 {[%clk
0:00:12.8]} 62... Kc3 {[%clk 0:00:01.9]} 63. Rxg6 {[%clk 0:00:13.7]} 63... Bb2
{[%clk 0:00:02.2]} 64. Nh3 {[%clk 0:00:14.6]} 64... Ba1 {[%clk 0:00:02]} 65. Nf4
{[%clk 0:00:15.5]} 65... Kb2 {[%clk 0:00:02.9]} 66. Nxh5 {[%clk 0:00:15.6]}
66... Ka3 {[%clk 0:00:03.2]} 67. Nf4 {[%clk 0:00:15]} 67... Bb2 {[%clk
0:00:02.3]} 68. Nd3 {[%clk 0:00:15.4]} 68... Bf6 {[%clk 0:00:01.8]} 69. Nxb4
{[%clk 0:00:15.5]} 69... Kb2 {[%clk 0:00:01.7]} 70. Rxf6 {[%clk 0:00:15.6]}
70... Ka3 {[%clk 0:00:02.2]} 71. Nc6 {[%clk 0:00:16]} 71... Kb2 {[%clk
0:00:02.2]} 72. Nb8 {[%clk 0:00:16.7]} 72... Kc3 {[%clk 0:00:02.2]} 73. Rc6+
{[%clk 0:00:16.9]} 73... Kd4 {[%clk 0:00:03.1]} 74. h5 {[%clk 0:00:17.5]} 74...
Ke5 {[%clk 0:00:04]} 75. h6 {[%clk 0:00:18.1]} 75... Kf5 {[%clk 0:00:04.9]} 76.
Re6 {[%clk 0:00:17.4]} 76... Kg4 {[%clk 0:00:04.3]} 77. h7 {[%clk 0:00:17.4]}
1-0

[Event "*** Titled Tuesday Blitz"]
[Site "Chess.com"]
[Date "2021.03.09"]
[Round "6"]
[White "GM_Crest"]
[Black "Olga_Girya"]
[Result "1-0"]
[WhiteElo "2764"]
[BlackElo "2463"]
[TimeControl "180+1"]
[EndTime "11:12:26 PST"]
[Termination "GM_Crest won by resignation"]

1. d4 {[%clk 0:03:00]} 1... Nf6 {[%clk 0:02:59.1]} 2. c4 {[%clk 0:02:59.7]} 2...
e6 {[%clk 0:02:59.4]} 3. Nc3 {[%clk 0:02:59.9]} 3... d5 {[%clk 0:02:59.6]} 4.
cxd5 {[%clk 0:02:59.5]} 4... exd5 {[%clk 0:02:59.9]} 5. Bg5 {[%clk 0:02:59.4]}
5... Bb4 {[%clk 0:03:00.1]} 6. e3 {[%clk 0:02:58.6]} 6... h6 {[%clk 0:03:00.2]}
7. Bh4 {[%clk 0:02:57.2]} 7... g5 {[%clk 0:03:00.2]} 8. Bg3 {[%clk 0:02:57]}
8... Ne4 {[%clk 0:03:00.9]} 9. Ne2 {[%clk 0:02:50.9]} 9... h5 {[%clk 0:03:00.4]}
10. f3 {[%clk 0:02:38.6]} 10... Nxg3 {[%clk 0:02:58.7]} 11. hxg3 {[%clk
0:02:39.5]} 11... c6 {[%clk 0:02:51]} 12. Qc2 {[%clk 0:02:36.1]} 12... Be6
{[%clk 0:02:46]} 13. O-O-O {[%clk 0:02:32.1]} 13... Nd7 {[%clk 0:02:45.9]} 14.
g4 {[%clk 0:02:27.5]} 14... h4 {[%clk 0:02:45.3]} 15. g3 {[%clk 0:02:25.5]}
15... Qf6 {[%clk 0:02:34.7]} 16. Bg2 {[%clk 0:00:52.3]} 16... h3 {[%clk
0:02:21.9]} 17. Rxh3 {[%clk 0:00:52]} 17... Rxh3 {[%clk 0:02:21.3]} 18. Bxh3
{[%clk 0:00:52.9]} 18... Qxf3 {[%clk 0:02:21.5]} 19. Qd3 {[%clk 0:00:52.8]}
19... Qf6 {[%clk 0:01:53.7]} 20. e4 {[%clk 0:00:52.6]} 20... O-O-O {[%clk
0:01:45.5]} 21. exd5 {[%clk 0:00:49.9]} 21... cxd5 {[%clk 0:01:41.7]} 22. Bg2
{[%clk 0:00:48.4]} 22... Nb6 {[%clk 0:01:39.2]} 23. Bf3 {[%clk 0:00:43]} 23...
Kb8 {[%clk 0:01:37.5]} 24. Kb1 {[%clk 0:00:43.1]} 24... Nc4 {[%clk 0:01:31.1]}
25. a3 {[%clk 0:00:40.6]} 25... Ba5 {[%clk 0:01:28.1]} 26. Ka1 {[%clk
0:00:38.4]} 26... Qe7 {[%clk 0:01:16.5]} 27. Ka2 {[%clk 0:00:35.9]} 27... Qd7
{[%clk 0:01:11.4]} 28. Rc1 {[%clk 0:00:34.1]} 28... Rc8 {[%clk 0:01:01.1]} 29.
Rc2 {[%clk 0:00:32.6]} 29... a6 {[%clk 0:00:40.4]} 30. Nc1 {[%clk 0:00:32]}
30... Bxc3 {[%clk 0:00:36.4]} 31. Rxc3 {[%clk 0:00:31.8]} 31... Bxg4 {[%clk
0:00:35.5]} 32. Bg2 {[%clk 0:00:27.3]} 32... Bf5 {[%clk 0:00:34.2]} 33. Qe2
{[%clk 0:00:26.5]} 33... Re8 {[%clk 0:00:31.1]} 34. Qf2 {[%clk 0:00:25.5]} 34...
Be4 {[%clk 0:00:30.3]} 35. Nd3 {[%clk 0:00:23.4]} 35... Bxd3 {[%clk 0:00:27.3]}
36. Rxd3 {[%clk 0:00:23.3]} 36... Re7 {[%clk 0:00:20.9]} 37. Rf3 {[%clk
0:00:18.4]} 37... Qe8 {[%clk 0:00:19.8]} 38. Bf1 {[%clk 0:00:17.4]} 38... Nd6
{[%clk 0:00:13.3]} 39. Qc2 {[%clk 0:00:17.2]} 39... Ne4 {[%clk 0:00:13]} 40. Bd3
{[%clk 0:00:17.1]} 40... Rc7 {[%clk 0:00:12.8]} 41. Qb3 {[%clk 0:00:17.1]} 41...
f6 {[%clk 0:00:10]} 42. Qxd5 {[%clk 0:00:15.9]} 42... Re7 {[%clk 0:00:05]} 43.
Bxe4 {[%clk 0:00:15]} 43... Rxe4 {[%clk 0:00:05.1]} 44. Rxf6 {[%clk 0:00:15.7]}
44... Re2 {[%clk 0:00:04.1]} 45. Rf7 {[%clk 0:00:15.3]} 45... Qb5 {[%clk
0:00:02.8]} 46. Qxb5 {[%clk 0:00:14.6]} 46... axb5 {[%clk 0:00:03.2]} 47. Rf5
{[%clk 0:00:15]} 47... Rd2 {[%clk 0:00:03.4]} 48. Rxg5 {[%clk 0:00:14.5]} 48...
Rxd4 {[%clk 0:00:03.4]} 49. Rxb5 {[%clk 0:00:15]} 49... Rg4 {[%clk 0:00:04.3]}
50. Rb3 {[%clk 0:00:14.9]} 50... Kc7 {[%clk 0:00:05.2]} 51. Rc3+ {[%clk
0:00:14.8]} 51... Kb6 {[%clk 0:00:05.7]} 52. b4 {[%clk 0:00:15]} 52... Kb5
{[%clk 0:00:05.9]} 53. Kb3 {[%clk 0:00:15.5]} 53... b6 {[%clk 0:00:06.2]} 54.
a4+ {[%clk 0:00:15.9]} 54... Ka6 {[%clk 0:00:07.1]} 55. Re3 {[%clk 0:00:15.1]}
55... Kb7 {[%clk 0:00:05.9]} 56. b5 {[%clk 0:00:15]} 56... Kc7 {[%clk
0:00:04.7]} 57. Re7+ {[%clk 0:00:14.9]} 57... Kd6 {[%clk 0:00:04.9]} 58. Re3
{[%clk 0:00:13.2]} 58... Kc5 {[%clk 0:00:05.2]} 59. Rc3+ {[%clk 0:00:12.5]}
59... Kd5 {[%clk 0:00:05.5]} 60. Ka3 {[%clk 0:00:11.1]} 60... Kd4 {[%clk
0:00:03]} 61. Rc6 {[%clk 0:00:11]} 61... Rxg3+ {[%clk 0:00:02.9]} 62. Kb4 {[%clk
0:00:11.3]} 62... Rg1 {[%clk 0:00:03.2]} 63. Rd6+ {[%clk 0:00:11.3]} 63... Ke5
{[%clk 0:00:02.9]} 64. Rxb6 {[%clk 0:00:12.2]} 64... Kd5 {[%clk 0:00:03.1]} 65.
Rc6 {[%clk 0:00:11.6]} 65... Rg8 {[%clk 0:00:02.3]} 66. Rc4 {[%clk 0:00:10.2]}
66... Ra8 {[%clk 0:00:02.3]} 67. Rh4 {[%clk 0:00:09.5]} 67... Kd6 {[%clk
0:00:02.4]} 68. a5 {[%clk 0:00:09.8]} 68... Kc7 {[%clk 0:00:02.5]} 69. Rh7+
{[%clk 0:00:09.2]} 69... Kd6 {[%clk 0:00:03]} 70. a6 {[%clk 0:00:09.7]} 70...
Rf8 {[%clk 0:00:03.2]} 71. Ka5 {[%clk 0:00:10]} 71... Rf1 {[%clk 0:00:03.2]} 72.
Kb6 {[%clk 0:00:09.9]} 72... Rf6 {[%clk 0:00:01.8]} 73. a7 {[%clk 0:00:09.3]}
73... Kd5+ {[%clk 0:00:02.3]} 74. Kb7 {[%clk 0:00:09.4]} 1-0

[Event "*** Titled Tuesday Blitz"]
[Site "Chess.com"]
[Date "2021.03.09"]
[Round "6"]
[White "Genghis_K"]
[Black "vinniethepooh"]
[Result "1/2-1/2"]
[WhiteElo "2904"]
[BlackElo "2721"]
[TimeControl "180+1"]
[EndTime "11:12:27 PST"]
[Termination "Game drawn - insufficient material"]

1. e4 {[%clk 0:02:53.5]} 1... c5 {[%clk 0:03:00.1]} 2. Nf3 {[%clk 0:02:53.1]}
2... d6 {[%clk 0:03:00.4]} 3. Nc3 {[%clk 0:02:49.4]} 3... Nf6 {[%clk 0:02:58.9]}
4. e5 {[%clk 0:02:49.8]} 4... dxe5 {[%clk 0:02:56.8]} 5. Nxe5 {[%clk 0:02:50.7]}
5... Qc7 {[%clk 0:02:53.7]} 6. d4 {[%clk 0:02:47.2]} 6... e6 {[%clk 0:02:47]} 7.
Bf4 {[%clk 0:02:44]} 7... Qb6 {[%clk 0:02:13.3]} 8. Nc4 {[%clk 0:02:38.8]} 8...
Qd8 {[%clk 0:02:06.3]} 9. dxc5 {[%clk 0:02:35.1]} 9... Bxc5 {[%clk 0:01:58.4]}
10. Qxd8+ {[%clk 0:02:32.2]} 10... Kxd8 {[%clk 0:01:59.3]} 11. Rd1+ {[%clk
0:02:32.1]} 11... Bd7 {[%clk 0:01:59]} 12. Nb5 {[%clk 0:02:29.9]} 12... Nd5
{[%clk 0:01:47.4]} 13. Bd6 {[%clk 0:02:12.5]} 13... Na6 {[%clk 0:01:09.1]} 14.
Ne5 {[%clk 0:01:45.2]} 14... Bxb5 {[%clk 0:00:53]} 15. Bxb5 {[%clk 0:01:44.7]}
15... Bxd6 {[%clk 0:00:51.6]} 16. Nxf7+ {[%clk 0:01:44.8]} 16... Ke7 {[%clk
0:00:52]} 17. Nxd6 {[%clk 0:01:45.1]} 17... Nac7 {[%clk 0:00:34.6]} 18. Be2
{[%clk 0:01:36.8]} 18... Kxd6 {[%clk 0:00:34.1]} 19. c4 {[%clk 0:01:37.3]} 19...
Rhf8 {[%clk 0:00:26.2]} 20. O-O {[%clk 0:01:36.3]} 20... Rf4 {[%clk 0:00:26.9]}
21. Rfe1 {[%clk 0:01:34.3]} 21... Raf8 {[%clk 0:00:26.2]} 22. f3 {[%clk
0:01:34.9]} 22... b6 {[%clk 0:00:21.2]} 23. b3 {[%clk 0:01:35]} 23... g5 {[%clk
0:00:16.9]} 24. h3 {[%clk 0:01:34.7]} 24... h5 {[%clk 0:00:17.1]} 25. cxd5
{[%clk 0:01:34.8]} 25... exd5 {[%clk 0:00:17.3]} 26. Rd2 {[%clk 0:01:30.6]}
26... Re8 {[%clk 0:00:15.3]} 27. Red1 {[%clk 0:01:30.2]} 27... Rf5 {[%clk
0:00:14.5]} 28. Bd3 {[%clk 0:01:29.1]} 28... Rfe5 {[%clk 0:00:14.6]} 29. Kf2
{[%clk 0:01:29.7]} 29... Rf8 {[%clk 0:00:13.7]} 30. Rc2 {[%clk 0:01:29.3]} 30...
g4 {[%clk 0:00:12.9]} 31. hxg4 {[%clk 0:01:28.3]} 31... hxg4 {[%clk 0:00:13.2]}
32. Rh1 {[%clk 0:01:29]} 32... gxf3 {[%clk 0:00:12.3]} 33. gxf3 {[%clk
0:01:29.1]} 33... Ne6 {[%clk 0:00:12.2]} 34. Rh6 {[%clk 0:01:29.5]} 34... Ke7
{[%clk 0:00:10.9]} 35. Rh7+ {[%clk 0:01:27]} 35... Rf7 {[%clk 0:00:10.5]} 36.
Rxf7+ {[%clk 0:01:23.5]} 36... Kxf7 {[%clk 0:00:11.4]} 37. Rc8 {[%clk
0:01:23.3]} 37... Rh5 {[%clk 0:00:10.6]} 38. Kg3 {[%clk 0:01:16.3]} 38... Rg5+
{[%clk 0:00:11]} 39. Kf2 {[%clk 0:01:16.6]} 39... Nf4 {[%clk 0:00:11.5]} 40. Bf1
{[%clk 0:01:16.3]} 40... Ne6 {[%clk 0:00:10.6]} 41. Ra8 {[%clk 0:01:15.4]} 41...
d4 {[%clk 0:00:03.7]} 42. Rxa7+ {[%clk 0:01:15.2]} 42... Kf6 {[%clk 0:00:03.4]}
43. Rd7 {[%clk 0:01:15.2]} 43... Rc5 {[%clk 0:00:03.3]} 44. Bc4 {[%clk
0:01:14.9]} 44... b5 {[%clk 0:00:03.1]} 45. Bxe6 {[%clk 0:01:13.6]} 45... Kxe6
{[%clk 0:00:04]} 46. Rxd4 {[%clk 0:01:14.1]} 46... Rc2+ {[%clk 0:00:04.6]} 47.
Ke3 {[%clk 0:01:14.7]} 47... Rxa2 {[%clk 0:00:05.3]} 48. Rb4 {[%clk 0:01:12.7]}
48... Ra5 {[%clk 0:00:05.8]} 49. Kd4 {[%clk 0:01:11.5]} 49... Kd6 {[%clk
0:00:06.4]} 50. f4 {[%clk 0:01:11.8]} 50... Kc6 {[%clk 0:00:07]} 51. Ke5 {[%clk
0:01:06.4]} 51... Ra1 {[%clk 0:00:05.4]} 52. f5 {[%clk 0:01:03.7]} 52... Re1+
{[%clk 0:00:04.4]} 53. Re4 {[%clk 0:01:04]} 53... Rb1 {[%clk 0:00:05.3]} 54. b4
{[%clk 0:01:03.7]} 54... Kd7 {[%clk 0:00:04.4]} 55. Kf6 {[%clk 0:01:00.7]} 55...
Rc1 {[%clk 0:00:03.3]} 56. Re5 {[%clk 0:00:57.5]} 56... Kc6 {[%clk 0:00:03.7]}
57. Ke7 {[%clk 0:00:56.1]} 57... Rc4 {[%clk 0:00:03]} 58. Re6+ {[%clk
0:00:40.3]} 58... Kd5 {[%clk 0:00:02.5]} 59. f6 {[%clk 0:00:40.9]} 59... Rc7+
{[%clk 0:00:02.7]} 60. Kd8 {[%clk 0:00:40.8]} 60... Ra7 {[%clk 0:00:01.4]} 61.
Re7 {[%clk 0:00:30.5]} 61... Ra8+ {[%clk 0:00:01.9]} 62. Kd7 {[%clk 0:00:31.1]}
62... Ra7+ {[%clk 0:00:02.1]} 63. Ke8 {[%clk 0:00:31.4]} 63... Ra6 {[%clk
0:00:02.6]} 64. Kf7 {[%clk 0:00:30.9]} 64... Ra4 {[%clk 0:00:02.9]} 65. Rd7+
{[%clk 0:00:19.9]} 65... Kc4 {[%clk 0:00:02.4]} 66. Ke7 {[%clk 0:00:16.8]} 66...
Ra3 {[%clk 0:00:02.5]} 67. f7 {[%clk 0:00:14]} 67... Re3+ {[%clk 0:00:02.9]} 68.
Kd8 {[%clk 0:00:11.3]} 68... Rf3 {[%clk 0:00:03.8]} 69. Ke8 {[%clk 0:00:08.9]}
69... Kxb4 {[%clk 0:00:04.2]} 70. Rd4+ {[%clk 0:00:05.6]} 70... Kc3 {[%clk
0:00:04.3]} 71. Rd1 {[%clk 0:00:06.2]} 71... b4 {[%clk 0:00:04.2]} 72. Rc1+
{[%clk 0:00:06.8]} 72... Kb2 {[%clk 0:00:04.4]} 73. Rc5 {[%clk 0:00:06.7]} 73...
b3 {[%clk 0:00:04.1]} 74. Rb5 {[%clk 0:00:07.3]} 74... Rxf7 {[%clk 0:00:04.4]}
75. Kxf7 {[%clk 0:00:07.5]} 75... Kc2 {[%clk 0:00:04.7]} 76. Ke6 {[%clk
0:00:07.9]} 76... b2 {[%clk 0:00:05.6]} 77. Rxb2+ {[%clk 0:00:08.1]} 77... Kxb2
{[%clk 0:00:06.5]} 1/2-1/2